[Event "Queens Festival Final-A 2022"]
[Site "Tornelo"]
[Date "2022.06.25"]
[Round "4.3"]
[White "Balabayeva, Xeniya"]
[Black "Song, Yuxin"]
[Result "1-0"]
[ECO "B52"]
[WhiteElo "2177"]
[BlackElo "2317"]
[Annotator "TA"]
[PlyCount "111"]
[EventDate "2022.06.24"]
[EventType "tourn"]
[EventCountry "NET"]
[SourceTitle "playchess.com"]
[Source "ChessBase"]
[SourceQuality "1"]
[TimeControl "180+2"]

{[%evp 11,110,22,18,12,26,12,24,0,0,0,1,-6,6,0,0,0,0,-5,-10,-44,-42,-29,0,-25,0,-14,0,0,0,0,47,0,0,0,0,0,0,0,0,0,118,120,443,465,418,427,668,638,794,754,928,927,1615,1277,1500,947,2077,2054,1745,924,1283,858,829,791,814,806,976,870,898,795,2262,2212,2130,1933,29986,29987,29987,29986,29985,29979,29990,29991,29991,29989,29989,29990,29990,29991,29992,29993,29993,29994,29995,29996,29997,29997,29997,29998,29998,29999,29999]} 1. e4 {[%emt 0:00:02]} c5 {[%emt 0:00:04]} 2. Nf3 {[%emt 0:00:02]} d6 {[%emt 0:00:01]} 3. Bb5+ {[%emt 0:00:02]} Bd7 {[%emt 0:00:01]} 4. Bxd7+ {[%emt 0:00:02]} Qxd7 {[%emt 0:00:02]} 5. c4 {[%emt 0:00:01]} e5 {[%emt 0:00:01]} 6. Nc3 {[%emt 0:00:02]} Nc6 {[%emt 0:00:01]} 7. O-O {[%emt 0:00:02] B52: Sicilian: Moscow Variation with 3...Bd7.} Be7 {[%emt 0:00:01] [#]} 8. Re1 $146 {[%emt 0:00:04]} ({Predecessor:} 8. a3 Bd8 9. b4 Nge7 10. Rb1 O-O 11. d3 f5 12. Nd5 b6 13. b5 Nd4 14. Nxd4 cxd4 15. Nxe7+ Bxe7 16. exf5 Qxf5 {0-1 (63) Arjun,K (2532)-Caruana,F (2792) Chess.com INT 2022}) 8... Bd8 {[%emt 0:00:02]} 9. Nd5 {[%emt 0:00:10][%cal Ob2b4] White has an edge.} Nge7 {[%emt 0:00:01]} 10. d3 {[%emt 0:00:03]} O-O {[%emt 0:00:03]} 11. Bd2 {[%emt 0:00:03]} Nxd5 {[%emt 0:00:05]} 12. cxd5 {[%emt 0:00:10]} Nd4 {[%emt 0:00:01]} 13. Nxd4 {[%emt 0:00:03]} cxd4 {[%emt 0:00:02]} 14. a4 {[%emt 0:00:49]} f5 {[%emt 0:00:06]} 15. a5 {[%emt 0:00:03]} Rc8 {[%emt 0:00:41]} 16. Qb3 {[%emt 0:00:12] Against Qb5} Be7 {[%emt 0:00:28]} 17. a6 {[%emt 0:00:05]} b6 {[%emt 0:00:10]} 18. Rac1 {[%emt 0:00:03]} Kh8 {[%emt 0:00:02]} 19. f3 {[%emt 0:00:32]} Bh4 {[%emt 0:00:52]} 20. Rf1 {[%emt 0:00:14]} Rc5 {[%emt 0:00:18]} (20... fxe4 $11 {deserves consideration.} 21. dxe4 h6) 21. g3 {[%emt 0:00:21]} (21. Rxc5 $14 {is superior.} bxc5 22. Qb7 Qxb7 23. axb7) 21... Be7 $11 {[%emt 0:00:04]} 22. Bb4 {[%emt 0:00:12]} Rxc1 {[%emt 0:00:30]} 23. Rxc1 {[%emt 0:00:00]} fxe4 {[%emt 0:00:03]} 24. dxe4 {[%emt 0:00:05]} Bg5 {[%emt 0:00:01]} 25. Rc6 {[%emt 0:00:03]} Be7 {[%emt 0:00:05]} (25... Be3+ $11 26. Kg2 h5) 26. Kg2 $16 {[%emt 0:00:04] [#] Black must now prevent Qc4.} Rc8 $2 {[%emt 0:00:03][%mdl 8192] Black cannot hold the game after this.} (26... h5 $16) 27. Qc4 $18 {[%emt 0:00:02]} Rf8 {[%emt 0:00:03]} 28. Rc7 {[%emt 0:00:03][%cal Bc6c7,Bc7a7,Ba7b7][%mdl 32]} Qe8 {[%emt 0:00:02]} (28... Qa4 $142 29. b3 (29. Rxe7 b5 $18) (29. Rxa7 Bd8 $11) 29... Qa2+ 30. Qc2 (30. Kh3 Qf2 $18) 30... Qxc2+ 31. Rxc2 Ra8) 29. Rxa7 {[%emt 0:00:03]} Qf7 {[%emt 0:00:02]} 30. Qd3 {[%emt 0:00:02] Active counter play!} Qe8 {[%emt 0:00:03]} 31. Rb7 {[%emt 0:00:03]} Bg5 {[%emt 0:00:03]} 32. a7 {[%emt 0:00:03]} Qa8 {[%emt 0:00:01]} 33. Rd7 {[%emt 0:00:04]} Rd8 {[%emt 0:00:01]} 34. Rxd8+ {[%emt 0:00:03]} Bxd8 {[%emt 0:00:02][%mdl 4096] Endgame KQB-KQB} 35. Qa6 {[%emt 0:00:02]} Bc7 {[%emt 0:00:00]} 36. Kf2 {[%emt 0:00:04][%cal Ob4a5] Threatens to win with Ba5!} h6 {[%emt 0:00:02]} 37. Ke2 {[%emt 0:00:01]} Kh7 {[%emt 0:00:00]} 38. Kd3 {[%emt 0:00:02]} Kg6 {[%emt 0:00:01]} 39. Qa4 {[%emt 0:00:03] Strongly threatening Qd7.} Kh7 {[%emt 0:00:04]} 40. f4 {[%emt 0:00:02]} Kh8 {[%emt 0:00:03]} 41. fxe5 {[%emt 0:00:02]} dxe5 {[%emt 0:00:01]} 42. d6 {[%emt 0:00:01]} Qf8 {[%emt 0:00:02]} 43. a8=Q {[%emt 0:00:04] White mates.} Bd8 {[%emt 0:00:01] [#]} 44. Qxd8 $3 {[%emt 0:00:05]} Qxd8 {[%emt 0:00:01]} 45. d7 {[%emt 0:00:01]} Qf6 {[%emt 0:00:02]} 46. Qa8+ {[%emt 0:00:03]} Kh7 {[%emt 0:00:00]} 47. d8=Q {[%emt 0:00:02]} Qf1+ {[%emt 0:00:02]} 48. Kc2 {[%emt 0:00:01][%cal Bd3c2,Bc2b1,Bb1a2,Ba2a3][%mdl 32]} Qc4+ {[%emt 0:00:01]} 49. Kb1 {[%emt 0:00:02]} Qf1+ {[%emt 0:00:01]} 50. Ka2 {[%emt 0:00:02]} Qc4+ {[%emt 0:00:01]} 51. Ka3 {[%emt 0:00:02]} Qd3+ {[%emt 0:00:04]} 52. b3 {[%emt 0:00:01]} Qb1 {[%emt 0:00:03]} 53. Qh8+ {[%emt 0:00:02]} Kg6 {[%emt 0:00:01]} 54. Qae8+ {[%emt 0:00:02]} Kf6 {[%emt 0:00:02]} 55. Qhf8+ {[%emt 0:00:02]} Kg5 {[%emt 0:00:03]} 56. Qxg7# {[%emt 0:00:01] Weighted Error Value: White=0.14 (very precise) /Black=0.65} 1-0

[Event "Queens Festival Final-A 2022"]
[Site "Tornelo"]
[Date "2022.06.25"]
[Round "4.4"]
[White "Okuyaz, Duru"]
[Black "Cori T., Deysi"]
[Result "0-1"]
[ECO "B06"]
[WhiteElo "2090"]
[BlackElo "2367"]
[Annotator "TA"]
[PlyCount "76"]
[EventDate "2022.06.24"]
[EventType "tourn"]
[EventCountry "NET"]
[SourceTitle "playchess.com"]
[Source "ChessBase"]
[SourceQuality "1"]
[TimeControl "180+2"]

{[%evp 9,76,23,48,25,31,6,64,57,65,44,70,-31,26,1,41,43,32,-77,-62,-183,-158,-311,-315,-418,-360,-357,-336,-347,-328,-322,-315,-297,-220,-354,-339,-399,-403,-400,-388,-520,-543,-855,-770,-852,-760,-1191,-1102,-2541,-2133,-29976,-1942,-1161,0,-6151,-535,-531,-514,-864,-841,-1160,-1145,-5214,-933,-29987,-29985,-29988,-29988,-29997,-29998]} 1. e4 {[%emt 0:00:02]} g6 {[%emt 0:00:06]} 2. d4 {[%emt 0:00:02]} Bg7 {[%emt 0:00:01]} 3. Nc3 {[%emt 0:00:02]} d6 {[%emt 0:00:01]} 4. Be3 {[%emt 0:00:01]} c6 {[%emt 0:00:01]} 5. f3 {[%emt 0:00:01]} Qc7 {[%emt 0:00:02]} 6. Qd2 {[%emt 0:00:01] B06: Modern Defence.} b5 {[%emt 0:00:02]} 7. O-O-O {[%emt 0:00:02]} b4 {[%emt 0:00:06]} (7... Nd7 $11) 8. Nce2 $14 {[%emt 0:00:02] White is slightly better.} a5 {[%emt 0:00:01] [#]} 9. Kb1 $146 {[%emt 0:00:01]} ({Predecessor:} 9. Nf4 Nd7 10. g4 h6 11. h4 Bb7 12. Kb1 Rc8 13. Rh2 Nb6 14. Bd3 e6 15. d5 cxd5 16. Bxb6 Qxb6 17. exd5 {0-1 (48) Staroszczyk,M (2052)-Zgadzaj,R (2245) Miedzyzdroje 2009}) 9... Nd7 {[%emt 0:00:07]} 10. Nc1 {[%emt 0:00:03]} (10. g4 $14) 10... Rb8 {[%emt 0:00:03]} (10... h5 $15) 11. g4 $11 {[%emt 0:00:01]} h5 {[%emt 0:00:03]} (11... c5 {with more complications.} 12. dxc5 dxc5 13. Bf4 e5) 12. gxh5 $1 {[%emt 0:00:03]} Rxh5 {[%emt 0:00:02]} 13. f4 {[%emt 0:00:02]} (13. Nh3 $14 {stays ahead.}) 13... Ngf6 $17 {[%emt 0:00:06][%cal Bg8f6,Bf6d5,Bd5c3,Bc3d1][%mdl 32]} 14. Bd3 {[%emt 0:00:08] White is on the road to losing.} (14. Qg2 $15) 14... c5 $36 {[%emt 0:00:17][%mdl 2048] Black is in control.} 15. e5 $2 {[%emt 0:00:02]} (15. dxc5 $17 dxc5 16. Qe2) 15... Nd5 {[%emt 0:00:07]} (15... dxe5 16. fxe5 Nd5 17. e6 $19) 16. e6 {[%emt 0:00:03]} N7f6 {[%emt 0:00:24]} 17. exf7+ {[%emt 0:00:01]} Kxf7 {[%emt 0:00:00]} 18. dxc5 {[%emt 0:00:29] [#]} Nc3+ $1 {[%emt 0:00:17][%mdl 576] Zwischenzug, Double Attack} 19. Ka1 {[%emt 0:00:02]} Nxd1 {[%emt 0:00:03]} 20. Qxd1 {[%emt 0:00:01]} dxc5 {[%emt 0:00:42][%cal Bd6c5,Bc5c4,Bc4d3,Bd3c2][%mdl 32] Hoping for ...c4.} 21. Nf3 {[%emt 0:00:03]} (21. Bc4+ {was called for.} Ke8 22. Nf3) 21... c4 {[%emt 0:00:05]} 22. Ne5+ {[%emt 0:00:02]} Rxe5 {[%emt 0:00:03]} 23. fxe5 {[%emt 0:00:01]} cxd3 {[%emt 0:00:01]} 24. exf6 {[%emt 0:00:14]} dxc2 {[%emt 0:00:30]} 25. Qd3 {[%emt 0:00:56]} Bf5 {[%emt 0:00:18]} 26. Qd5+ {[%emt 0:00:05]} Be6 {[%emt 0:00:02] This bishop pair is nice.} 27. Qd3 {[%emt 0:00:01]} Bxf6 {[%emt 0:00:01] ( -> ...Rd8). Active counter play!} 28. Bd4 {[%emt 0:00:03]} Rd8 {[%emt 0:00:09]} 29. Rg1 {[%emt 0:00:01]} Bf5 {[%emt 0:00:11]} (29... Rxd4 $142 30. Qxg6+ Kf8 31. Qh6+ Ke8 32. Qh5+ Kd8 33. Rf1 Rd5 34. Qf3 Rd2 35. Qe3 Rd1 36. a3 Qc4 37. Rxd1+ cxd1=Q 38. Qb6+ Kc8 39. Qxe6+ Qxe6 40. Kb1 Qe5 41. axb4 Qxb2#) 30. Qb3+ {[%emt 0:00:02]} Be6 {[%emt 0:00:01]} (30... Kg7 $142 31. Bxf6+ exf6) 31. Qd3 {[%emt 0:00:07]} Rg8 {[%emt 0:00:04]} (31... Rxd4 $142 32. Qxg6+ Kf8 33. Qh6+ Ke8 34. Qh5+ Kd8 35. Qf3 Rd2 36. Re1 Bd5 37. Qe3 Rd1 38. h4 Qc4 39. Qb6+ Kc8 40. Qa6+ Qxa6 41. Rxd1 cxd1=Q 42. Kb1 Be4+ 43. Ka1 Qxc1#) 32. Bxf6 {[%emt 0:00:02]} exf6 {[%emt 0:00:00]} 33. Qf3 {[%emt 0:00:09]} (33. Qe4 $142 Bf5 34. Qd5+ Kf8 35. Qf3) 33... Rd8 {[%emt 0:00:06]} 34. Rf1 {[%emt 0:00:02]} Qe5 {[%emt 0:00:01] aiming for ...a4.} 35. Nd3 {[%emt 0:00:04] [#]} Qd4 {[%emt 0:00:01]} (35... Rxd3 $142 $1 36. Qxd3 {[#]} Qf4 $3 {[%mdl 512]} 37. Rxf4 c1=Q+ 38. Qb1 Qxf4) 36. h4 {[%emt 0:00:15]} a4 {[%emt 0:00:03] Black mates.} 37. h5 {[%emt 0:00:04]} g5 {[%emt 0:00:02]} 38. Nxb4 {[%emt 0:00:10]} Qd1+ {[%emt 0:00:02] Weighted Error Value: White=1.26/Black=0.87} 0-1

[Event "Queens Festival Final-A 2022"]
[Site "Tornelo"]
[Date "2022.06.25"]
[Round "5.1"]
[White "Song, Yuxin"]
[Black "Okuyaz, Duru"]
[Result "1/2-1/2"]
[ECO "C10"]
[WhiteElo "2317"]
[BlackElo "2090"]
[Annotator "TA"]
[PlyCount "102"]
[EventDate "2022.06.24"]
[EventType "tourn"]
[EventCountry "NET"]
[SourceTitle "playchess.com"]
[Source "ChessBase"]
[SourceQuality "1"]
[TimeControl "180+2"]

{[%evp 14,102,29,16,31,6,25,0,8,-4,0,-57,0,-25,3,10,3,-76,0,0,4,-22,-9,-36,-35,-37,0,-21,-20,-8,-8,-41,-12,-43,-40,-41,-25,-66,-30,-30,-25,-27,-27,-35,-43,-40,-35,-18,-41,-62,-62,-98,-100,-95,-86,-100,-106,-100,-84,-94,-87,-130,-101,-116,-108,-151,-156,-276,-284,-440,-421,-29978,-29980,-29981,-29982,-29982,-29983,-29983,-29983,-29984,-29984,-29984,0,-29984,-29983,-29983,-557,-379,0,-29979,0]} 1. e4 {[%emt 0:00:02]} e6 {[%emt 0:00:04]} 2. d4 {[%emt 0:00:02]} d5 {[%emt 0:00:01]} 3. Nd2 {[%emt 0:00:01]} dxe4 {[%emt 0:00:01]} 4. Nxe4 {[%emt 0:00:01]} Nd7 {[%emt 0:00:01]} 5. Nf3 {[%emt 0:00:02]} Ngf6 {[%emt 0:00:01]} 6. Nxf6+ {[%emt 0:00:01]} Nxf6 {[%emt 0:00:01]} 7. Be3 {[%emt 0:00:00] 7.c3 is becoming the main line.} Be7 {[%emt 0:00:04]} 8. Bd3 {[%emt 0:00:08]} O-O {[%emt 0:00:01] C10: French with 3 Nc3: Unusual Black 3rd moves and 3...dxe4.} 9. O-O {[%emt 0:00:01]} b6 {[%emt 0:00:01]} 10. Ne5 {[%emt 0:00:02]} Bb7 {[%emt 0:00:01] Against Qf3. The position is equal.} 11. c4 {[%emt 0:00:04]} c5 {[%emt 0:00:18]} 12. Re1 {[%emt 0:00:04] [#]} (12. dxc5 $11 Qc7 13. c6 Bxc6 14. Nxc6 Qxc6 15. Qe2) 12... Rc8 $146 {[%emt 0:00:08]} ({Much weaker is} 12... cxd4 13. Bxd4 Bb4 14. Re3 $11) (12... Qd6 $15) ({Predecessor:} 12... Qd6 13. Qc2 cxd4 14. Bf4 Qd8 15. Rad1 Rc8 16. h3 Kh8 17. Qe2 Qe8 {1-0 (55) Gentes,K (2331)-Yam,A (2048) Edmonton 2005}) 13. a3 {[%emt 0:00:03]} cxd4 {[%emt 0:00:03] [#]} (13... Qd6 $5 {[%cal Rf8d8]}) 14. Bxd4 {[%emt 0:00:02]} Qc7 {[%emt 0:00:12]} 15. Ng4 {[%emt 0:00:17] [#]} (15. Bc3 $11) 15... Qf4 {[%emt 0:00:54]} (15... Qc6 $1 $17 {[%csl Gb7][%cal Rc6g2]} 16. Ne3 Rfd8) 16. Nxf6+ $11 {[%emt 0:00:12]} Bxf6 {[%emt 0:00:02]} 17. Be3 {[%emt 0:00:05]} Qh4 {[%emt 0:00:06]} 18. Qe2 {[%emt 0:00:12]} Rfd8 {[%emt 0:00:07][%cal Of6b2]} 19. Rad1 {[%emt 0:00:02]} Bg5 {[%emt 0:00:28]} 20. Qf1 {[%emt 0:00:23]} Bxe3 {[%emt 0:00:11]} 21. Rxe3 {[%emt 0:00:02]} Qf6 {[%emt 0:00:01]} 22. Qe2 {[%emt 0:00:04]} Rd4 {[%emt 0:00:05]} 23. Re1 {[%emt 0:00:17]} Rcd8 {[%emt 0:00:03]} 24. b4 {[%emt 0:00:24]} g6 {[%emt 0:00:04]} 25. Rg3 {[%emt 0:00:05]} Qe7 {[%emt 0:00:07]} 26. Qc2 {[%emt 0:00:39]} Qd7 {[%emt 0:00:28][%cal Rd4d3]} 27. Bf1 {[%emt 0:00:13]} Rd2 {[%emt 0:00:03]} 28. Qc3 {[%emt 0:00:02]} Qd4 {[%emt 0:00:02]} 29. Rge3 {[%emt 0:00:08]} Qxc3 {[%emt 0:00:03]} (29... Kf8 {keeps more tension.} 30. f3 Ra2 31. Qb3 Rb2) 30. Rxc3 {[%emt 0:00:01]} Ra2 {[%emt 0:00:01]} 31. f3 {[%emt 0:00:11]} Rdd2 {[%emt 0:00:02]} 32. c5 {[%emt 0:00:01]} bxc5 {[%emt 0:00:02]} 33. bxc5 {[%emt 0:00:01]} Bc6 {[%emt 0:00:01]} 34. Rb1 {[%emt 0:00:07]} Kg7 {[%emt 0:00:02]} 35. Rbc1 {[%emt 0:00:02]} a5 {[%emt 0:00:03]} 36. h4 {[%emt 0:00:02]} h5 {[%emt 0:00:03]} 37. Kh2 {[%emt 0:00:01]} Kf6 {[%emt 0:00:01]} 38. Kg3 {[%emt 0:00:01]} g5 {[%emt 0:00:03]} 39. hxg5+ {[%emt 0:00:01]} Kxg5 {[%emt 0:00:01]} 40. Rc4 {[%emt 0:00:04] Prevents h4+.} (40. Re1 $17) 40... f5 {[%emt 0:00:04]} 41. Kh2 {[%emt 0:00:05]} (41. R4c3 {was necessary.}) 41... Bxf3 $19 {[%emt 0:00:04]} 42. c6 {[%emt 0:00:04]} (42. R4c3 $19 Bc6 43. Rb3) 42... Bxg2 {[%emt 0:00:01]} 43. Bxg2 {[%emt 0:00:03]} Rxg2+ {[%emt 0:00:02] KRR-KRR} 44. Kh1 {[%emt 0:00:01]} Rh2+ {[%emt 0:00:00]} 45. Kg1 {[%emt 0:00:01]} Rag2+ {[%emt 0:00:02]} 46. Kf1 {[%emt 0:00:00]} Rf2+ {[%emt 0:00:07]} 47. Kg1 {[%emt 0:00:01]} Rfg2+ {[%emt 0:00:01]} 48. Kf1 {[%emt 0:00:01]} Rd2 {[%emt 0:00:03][%cal Rh2h1]} 49. Kg1 {[%emt 0:00:01]} Rhg2+ {[%emt 0:00:01]} (49... h4 $142 50. R4c3 Rdg2+ 51. Kf1 Kg4 52. c7 Rf2+ 53. Kg1 h3 54. Rxh3 Rhg2+ 55. Kh1 Kxh3 56. Rc3+ Rg3 57. Rxg3+ Kxg3 58. Kg1 Rc2 59. Kf1 Rxc7 60. Ke2 Rd7 61. Ke3 a4 62. Ke2 f4 63. Kf1 f3 64. Ke1 Rd6 65. Kf1 Rd1#) 50. Kh1 {[%emt 0:00:01]} Rh2+ $2 {[%emt 0:00:02]} (50... h4 $19 51. Rg1 Rxg1+ 52. Kxg1 Rd8) 51. Kg1 {[%emt 0:00:02]} Rdg2+ $2 {[%emt 0:00:01] Weighted Error Value: White=0.41/Black=0.23 (precise)} (51... h4 {mates} 52. R4c3 Rdg2+ 53. Kf1 Rf2+ 54. Kg1 Kg4 55. c7 h3 56. Rxh3 Rhg2+ 57. Kh1 Kxh3 58. Rc3+ Rg3 59. Rxg3+ Kxg3 60. Kg1 Rc2 61. Kf1 Rxc7 62. Ke2 Rd7 63. Ke3 Rd8 64. a4 Rd5 65. Ke2 f4 66. Kf1 Re5 67. Kg1 Re1#) 1/2-1/2

[Event "Queens Festival Final-A 2022"]
[Site "Tornelo"]
[Date "2022.06.25"]
[Round "5.2"]
[White "Gueci, Tea"]
[Black "Balabayeva, Xeniya"]
[Result "1-0"]
[ECO "B12"]
[WhiteElo "2248"]
[BlackElo "2177"]
[Annotator "TA"]
[PlyCount "73"]
[EventDate "2022.06.24"]
[EventType "tourn"]
[EventCountry "NET"]
[SourceTitle "playchess.com"]
[Source "ChessBase"]
[SourceQuality "1"]
[TimeControl "180+2"]

{[%evp 9,73,10,34,13,34,32,34,28,33,39,35,26,36,49,60,36,67,0,31,-44,10,-2,46,-56,103,-166,-143,-275,-259,-355,-349,-342,-322,-332,-331,-406,-413,-391,-408,-384,-339,-331,-363,-1041,-466,-1115,-1038,-1073,-1037,-1246,-917,-906,252,260,252,240,423,122,6149,6175,5739,3011,29994,403,29995,29996]} 1. e4 {[%emt 0:00:02]} c6 {[%emt 0:00:04]} 2. d4 {[%emt 0:00:03]} d5 {[%emt 0:00:01]} 3. e5 {[%emt 0:00:01]} Bf5 {[%emt 0:00:02]} 4. Nf3 {[%emt 0:00:01]} e6 {[%emt 0:00:02]} 5. Be2 {[%emt 0:00:01]} h6 {[%emt 0:00:03]} 6. Nbd2 {[%emt 0:00:02] B12: Caro-Kann: Advance Variation.} Nd7 {[%emt 0:00:01]} 7. Nb3 {[%emt 0:00:02]} Ne7 {[%emt 0:00:02]} 8. O-O {[%emt 0:00:02] White is slightly better.} Bh7 {[%emt 0:00:01]} 9. a4 {[%emt 0:00:02][%cal Ba2a4,Ba4a5][%mdl 32]} Nf5 {[%emt 0:00:02]} 10. a5 {[%emt 0:00:01]} a6 {[%emt 0:00:01]} 11. c4 {[%emt 0:00:10]} dxc4 {[%emt 0:00:17]} 12. Bxc4 {[%emt 0:00:00]} (12. Nbd2 $5 {[%cal Rd2c4]}) 12... Be7 {[%emt 0:00:01] [#]} 13. Nbd2 $146 {[%emt 0:00:12]} (13. g4 $14 Nh4 14. Nxh4 Bxh4 15. f4) ({Predecessor:} 13. Qe2 O-O 14. Bd3 c5 15. dxc5 Nxc5 16. Nxc5 Bxc5 17. Rd1 Qe7 18. Bd2 Rfd8 19. Bc3 {0-1 (52) Miranda,R (2284)-Gupta,S (2429) Chess.com INT 2020}) 13... O-O {[%emt 0:00:10]} 14. Qb3 {[%emt 0:00:05]} (14. Nb3 $14) 14... Qc7 {[%emt 0:00:06]} (14... b5 $1 $15 15. Bd3 c5) 15. Re1 {[%emt 0:00:15]} Rfd8 {[%emt 0:00:19]} (15... b5 $11 16. axb6 Nxb6) 16. Ne4 {[%emt 0:00:06]} ({White should try} 16. g4 $14) 16... Rac8 $2 {[%emt 0:00:13] [#]} (16... b5 $15 {keeps the upper hand.} 17. axb6 Nxb6) 17. Bxe6 $2 {[%emt 0:00:27][%mdl 8192] 0x0.0022fab3b29ddp-1022s more active pieces.} fxe6 $19 {[%emt 0:00:03]} 18. Qxe6+ {[%emt 0:00:00]} (18. g4 $17 {was the only defense.}) 18... Kh8 {[%emt 0:00:03]} 19. g4 {[%emt 0:00:05]} Nf8 {[%emt 0:00:03][%csl LRd4,LRe6]} 20. Qc4 {[%emt 0:00:17]} Nh4 {[%emt 0:00:15]} 21. Nxh4 {[%emt 0:00:02]} Bxh4 {[%emt 0:00:02]} 22. g5 {[%emt 0:00:01]} Qd7 {[%emt 0:00:22]} 23. gxh6 {[%emt 0:00:24]} Qg4+ {[%emt 0:00:19]} 24. Ng3 {[%emt 0:00:02]} Rxd4 {[%emt 0:00:04]} 25. hxg7+ {[%emt 0:00:02]} Kxg7 {[%emt 0:00:02]} 26. Qc3 {[%emt 0:00:15]} (26. Qf1) 26... Ne6 {[%emt 0:00:08]} (26... Rd3 $142 27. Qc5 Nd7) 27. Be3 {[%emt 0:00:12]} (27. h3 $142 Qg6 28. Qf3) 27... Rd3 {[%emt 0:00:05]} 28. Qc1 {[%emt 0:00:07]} Bxg3 {[%emt 0:00:14]} 29. hxg3 {[%emt 0:00:00]} Be4 {[%emt 0:00:05]} 30. Ra4 {[%emt 0:00:08]} Nd4 $4 {[%emt 0:00:34][%mdl 8192]} 31. Rxd4 $18 {[%emt 0:00:07] Really sharp!} Rxd4 {[%emt 0:00:04]} 32. Bxd4 {[%emt 0:00:00]} Bd5 $2 {[%emt 0:00:09] [#]} (32... Bf5) 33. Qe3 $2 {[%emt 0:00:09]} (33. e6+ $1 $18 {is the precise move to win.} Kh7 34. Qc2+ Kh6 35. Qd2+ Kg6 36. Qd3+ Qf5 37. Qxf5+ Kxf5 38. Re5+ Kg4 39. e7) 33... Kf7 $2 {[%emt 0:00:05][%mdl 8192]} (33... Be6 $16 34. Qe4 Qh5) 34. e6+ $1 {[%emt 0:00:16]} Bxe6 {[%emt 0:00:02]} 35. Qe5 {[%emt 0:00:04] White wants to mate with Qf6+.} Qf5 {[%emt 0:00:04] Prevents Qf6+.} 36. Qg7+ {[%emt 0:00:02]} Ke8 {[%emt 0:00:01]} 37. Bf6 {[%emt 0:00:04] What a bad dream for Black.  Weighted Error Value: White=0.94/Black=1.06} 1-0

[Event "Queens Festival Final-A 2022"]
[Site "Tornelo"]
[Date "2022.06.25"]
[Round "5.3"]
[White "Yuan, Ye"]
[Black "Ismayil, Malak"]
[Result "1-0"]
[ECO "E85"]
[WhiteElo "2108"]
[BlackElo "2001"]
[Annotator "NA RC"]
[PlyCount "91"]
[EventDate "2022.06.24"]
[EventType "tourn"]
[EventCountry "NET"]
[SourceTitle "playchess.com"]
[Source "ChessBase"]
[SourceQuality "1"]
[TimeControl "180+2"]

1. d4 {[%emt 0:00:02]} Nf6 {[%emt 0:00:08]} 2. c4 {[%emt 0:00:05]} g6 {[%emt 0:00:05]} 3. Nc3 {[%emt 0:00:03]} Bg7 {[%emt 0:00:02]} 4. e4 {[%emt 0:00:06]} d6 {[%emt 0:00:01]} 5. f3 {[%emt 0:00:02]} O-O {[%emt 0:00:06]} 6. Be3 {[%emt 0:00:07]} e5 {[%emt 0:00:02]} 7. Nge2 {[%emt 0:00:07]} Nbd7 {[%emt 0:00:06]} 8. Qd2 {[%emt 0:00:03]} Qe7 {[%emt 0:00:11]} 9. d5 {[%emt 0:00:15]} a5 {[%emt 0:00:21]} 10. Ng3 {[%emt 0:00:11]} Nc5 {[%emt 0:00:04]} 11. b3 {[%emt 0:00:07]} c6 {[%emt 0:00:08]} 12. h4 {[%emt 0:00:07]} cxd5 {[%emt 0:00:02]} 13. cxd5 {[%emt 0:00:02]} h5 {[%emt 0:00:11]} 14. Bh6 {[%emt 0:00:05]} b6 {[%emt 0:00:12]} 15. Bb5 {[%emt 0:00:06]} Bd7 {[%emt 0:00:05]} 16. Be2 {[%emt 0:00:05]} Rac8 {[%emt 0:00:09]} 17. Nb5 {[%emt 0:00:06]} Bxb5 {[%emt 0:00:27]} 18. Bxb5 {[%emt 0:00:02]} Kh7 {[%emt 0:00:01]} 19. Bxg7 {[%emt 0:00:02]} Kxg7 {[%emt 0:00:03]} 20. Qg5 {[%emt 0:00:07]} Kh7 {[%emt 0:00:02]} 21. O-O {[%emt 0:00:07]} Ng8 {[%emt 0:00:05]} 22. Rfc1 {[%emt 0:00:14]} Qxg5 {[%emt 0:00:07]} 23. hxg5 {[%emt 0:00:01]} f6 {[%emt 0:00:01]} 24. gxf6 {[%emt 0:00:02]} Nxf6 {[%emt 0:00:01]} 25. Nf1 {[%emt 0:00:06]} h4 {[%emt 0:00:17]} 26. Ne3 {[%emt 0:00:01]} Rb8 {[%emt 0:00:06]} 27. Nc4 {[%emt 0:00:06]} Rfd8 {[%emt 0:00:02]} 28. Rc3 {[%emt 0:00:03]} Nh5 {[%emt 0:00:03]} 29. a3 {[%emt 0:00:07]} Nf4 {[%emt 0:00:02]} 30. Kf1 {[%emt 0:00:05]} a4 {[%emt 0:00:15]} 31. bxa4 {[%emt 0:00:05]} g5 {[%emt 0:00:07]} 32. Rb1 {[%emt 0:00:08]} g4 {[%emt 0:00:02]} 33. a5 {[%emt 0:00:15]} bxa5 {[%emt 0:00:09]} 34. Nxd6 {[%emt 0:00:04]} Rxd6 {[%emt 0:00:05]} 35. Rxc5 {[%emt 0:00:02]} h3 {[%emt 0:00:03]} 36. g3 {[%emt 0:00:08]} h2 {[%emt 0:00:06]} 37. Kf2 {[%emt 0:00:02]} Nh3+ {[%emt 0:00:12]} 38. Kg2 {[%emt 0:00:01]} Ng5 {[%emt 0:00:03]} 39. fxg4 {[%emt 0:00:09]} Rf8 {[%emt 0:00:04]} 40. Rc7+ {[%emt 0:00:02]} Kh6 {[%emt 0:00:02]} 41. Kxh2 {[%emt 0:00:08]} Rf2+ {[%emt 0:00:02]} 42. Kg1 {[%emt 0:00:01]} Nxe4 {[%emt 0:00:02]} 43. Bd3 {[%emt 0:00:06]} Rxd5 {[%emt 0:00:01]} 44. Bxe4 {[%emt 0:00:02]} Rdd2 {[%emt 0:00:02]} 45. Rb6+ {[%emt 0:00:02]} Kg5 {[%emt 0:00:02]} 46. Rg7# {[%emt 0:00:06]} 1-0